{"text_format":"3","workbook":"xlsx","n_sheets":4,"sheets":["Bắt đầu","Chi phí","Thu nhập","Tóm_tắt"],"not_rendered":{"charts":1,"defined_names":2},"read":"whole","date_system":"1900"}

{"sheet":"Bắt đầu","index":0,"n_rows":8,"n_cols":2,"rows_kept":8}
[null,"GIỚI THIỆU VỀ MẪU NÀY"]
[null,"Sử dụng sổ làm việc Ngân sách sự kiện này để theo dõi Chi phí phát sinh và Thu nhập kiếm được thông qua sự kiện."]
[null,"Điền Tên sự kiện và nhập chi tiết vào các bảng trong trang tính Chi phí và trang tính Thu nhập."]
[null,"Tổng chi phí và Tổng thu nhập được tính toán tự động."]
[null,"Tóm tắt lãi-lỗ được cập nhật tự động trong trang tính Tóm tắt."]
[null,"Lưu ý: "]
[null,"Hướng dẫn bổ sung được cung cấp ở cột A trong từng trang tính. Văn bản này đã được ẩn một cách chủ ý. Để loại bỏ văn bản, chọn cột A, rồi chọn XÓA BỎ. Để bỏ ẩn văn bản, chọn cột A, rồi thay đổi màu phông chữ."]
[null,"Để tìm hiểu thêm về các bảng, hãy nhấn SHIFT rồi nhấn F10 trong một bảng, chọn tùy chọn BẢNG, rồi chọn VĂN BẢN THAY THẾ."]

{"sheet":"Chi phí","index":1,"n_rows":33,"n_cols":8,"rows_kept":33,"merged":[[0,5,0,7],[1,1,1,7],[2,6,2,7]]}
["Nhập Chi phí ước tính và thực tế cho từng danh mục vào các bảng tương ứng trong trang tính này. Tổng chi phí được tính toán tự động. Hướng dẫn hữu ích về cách sử dụng trang tính này nằm ở các ô trong cột này. Nhấn mũi tên xuống để bắt đầu."]
["Nhập Tên sự kiện vào ô bên phải để tùy chỉnh tiêu đề của trang tính này và các trang tính khác.","Ngân sách sự kiện cho \nTên sự kiện"]
["Nhãn Chi phí nằm trong ô G3.",{"$nulls":5}," Chi phí"]
["Nhãn Ước tính nằm trong ô G4 và nhãn Thực tế nằm trong ô H4.",{"$nulls":5},"Ước tính","Thực tế"]
["Nhãn Tổng chi phí nằm trong ô bên phải. Tổng chi phí ước tính được tính toán tự động trong ô G5. Tổng chi phí thực tế và thanh dữ liệu mô tả Tổng chi phí thực tế được cập nhật tự động trong ô H5. Hướng dẫn tiếp theo nằm trong ô A7.","Tổng chi phí",{"$nulls":4},{"$f":"SUM(C12,C20,C26,C33,G12,G20,G25)","v":{"v":1145,"d":"1,145.00 ₫"}},{"$f":"SUM(D12,D20,D26,D33,H12,H20,H25)","v":{"v":395,"d":"395.00 ₫"}}]
[]
["Nhập Chi phí hiện trường vào bảng bắt đầu từ ô bên phải và Chi phí đồ ăn uống nhẹ vào bảng bắt đầu từ ô F7. Hướng dẫn tiếp theo nằm trong ô A14.","Hiện trường","Ước tính","Thực tế",null,"Đồ ăn uống nhẹ","Ước tính","Thực tế"]
[null,"Phí phòng và hội trường",{"v":500,"d":"500.00 ₫"},{"v":250,"d":"250.00 ₫"},null,"Đồ ăn"]
[null,"Nhân viên hiện trường",{"v":400,"d":"400.00 ₫"},{"v":50,"d":"50.00 ₫"},null,"Đồ uống"]
[null,"Thiết bị",{"$nulls":3},"Khăn trải bàn"]
[null,"Bàn và ghế",{"$nulls":3},"Nhân viên và tiền thưởng"]
[null,"Tổng",{"$f":"SUBTOTAL(109,Chi_phí_hiện_trường[Ước tính])","v":{"v":900,"d":"900.00 ₫"}},{"$f":"SUBTOTAL(109,Chi_phí_hiện_trường[Thực tế])","v":{"v":300,"d":"300.00 ₫"}},null,"Tổng",{"$f":"SUBTOTAL(109,Chi_phí_đồ_ăn_uống_nhẹ[Ước tính])","v":{"v":0,"d":"0.00 ₫"}},{"$f":"SUBTOTAL(109,Chi_phí_đồ_ăn_uống_nhẹ[Thực tế])","v":{"v":0,"d":"0.00 ₫"}}]
[]
["Nhập Chi phí trang trí vào bảng bắt đầu từ ô bên phải và Chi phí chương trình vào bảng bắt đầu từ ô F14. Hướng dẫn tiếp theo nằm trong ô A22.","Trang trí","Ước tính","Thực tế",null,"Chương trình","Ước tính","Thực tế"]
[null,"Hoa",{"v":200,"d":"200.00 ₫"},{"v":50,"d":"50.00 ₫"},null,"Người biểu diễn"]
[null,"Nến",{"$nulls":3},"Diễn giả"]
[null,"Đèn",{"$nulls":3},"Đi lại"]
[null,"Bóng bay",{"$nulls":3},"Khách sạn"]
[null,"Vật dụng bằng giấy",{"$nulls":3},"Khác"]
[null,"Tổng",{"$f":"SUBTOTAL(109,Chi_phí_trang_trí[Ước tính])","v":{"v":200,"d":"200.00 ₫"}},{"$f":"SUBTOTAL(109,Chi_phí_trang_trí[Thực tế])","v":{"v":50,"d":"50.00 ₫"}},null,"Tổng",{"$f":"SUBTOTAL(109,Chi_phí_chương_trình[Ước tính])","v":{"v":0,"d":"0.00 ₫"}},{"$f":"SUBTOTAL(109,Chi_phí_chương_trình[Thực tế])","v":{"v":0,"d":"0.00 ₫"}}]
[]
["Nhập Chi phí dịch vụ quảng bá vào bảng bắt đầu từ ô bên phải và Chi phí giải thưởng vào bảng bắt đầu từ ô F22. Hướng dẫn tiếp theo nằm trong ô A28.","Quảng bá","Ước tính","Thực tế",null,"Giải thưởng","Ước tính","Thực tế"]
[null,"Tác phẩm đồ họa",{"v":45,"d":"45.00 ₫"},{"v":45,"d":"45.00 ₫"},null,"Dải băng/Kỷ niệm chương/Cúp"]
[null,"Sao chép/in",{"$nulls":3},"Quà tặng"]
[null,"Bưu phí",{"$nulls":3},"Tổng",{"$f":"SUBTOTAL(109,Chi_phí_giải_thưởng[Ước tính])","v":{"v":0,"d":"0.00 ₫"}},{"$f":"SUBTOTAL(109,Chi_phí_giải_thưởng[Thực tế])","v":{"v":0,"d":"0.00 ₫"}}]
[null,"Tổng",{"$f":"SUBTOTAL(109,Chi_phí_dịch_vụ_quảng_bá[Ước tính])","v":{"v":45,"d":"45.00 ₫"}},{"$f":"SUBTOTAL(109,Chi_phí_dịch_vụ_quảng_bá[Thực tế])","v":{"v":45,"d":"45.00 ₫"}}]
[]
["Nhập Chi phí tổng hợp vào bảng bắt đầu từ ô bên phải.","Khác","Ước tính","Thực tế"]
[null,"Điện thoại"]
[null,"Đi lại"]
[null,"Văn phòng phẩm"]
[null,"Dịch vụ fax"]
[null,"Tổng",{"$f":"SUBTOTAL(109,Chi_phí_tổng_hợp[Ước tính])","v":{"v":0,"d":"0.00 ₫"}},{"$f":"SUBTOTAL(109,Chi_phí_tổng_hợp[Thực tế])","v":{"v":0,"d":"0.00 ₫"}}]

{"sheet":"Thu nhập","index":2,"n_rows":30,"n_cols":7,"rows_kept":30,"merged":[[1,1,1,6],[2,5,2,6]]}
["Nhập Thu nhập ước tính và thực tế từ từng danh mục vào các bảng tương ứng trong trang tính này. Tổng thu nhập được tính toán tự động. Hướng dẫn hữu ích về cách sử dụng trang tính này nằm ở các ô trong cột này. Nhấn mũi tên xuống để bắt đầu."]
["Tên sự kiện được cập nhật tự động trong ô bên phải.",{"$f":"'Chi phí'!B2","v":"Ngân sách sự kiện cho \nTên sự kiện"}]
["Nhãn Thu nhập nằm trong ô F3.",{"$nulls":4}," Thu nhập"]
["Nhãn Ước tính nằm trong ô F4 và nhãn Thực tế nằm trong ô G4.",{"$nulls":4},"Ước tính","Thực tế"]
["Nhãn Tổng thu nhập nằm trong ô bên phải. Tổng ước tính được tính toán tự động trong ô F5. Tổng thực tế và thanh dữ liệu mô tả Tổng thực tế được cập nhật tự động trong ô G5.","Tổng thu nhập",{"$nulls":3},{"$f":"SUM(Phí_vào_cửa[[#Totals],[Tổng ước tính]],Quảng_cáo_trong_chương_trình[[#Totals],[Tổng ước tính]],Người_tham_gia_triển_lãm_và_nhà_cung_cấp[[#Totals],[Tổng ước tính]],Hàng_bán_ra[[#Totals],[Tổng ước tính]])","v":{"v":1936,"d":"1,936.00 ₫"}},{"$f":"SUM(Phí_vào_cửa[[#Totals],[Tổng thực tế]],Quảng_cáo_trong_chương_trình[[#Totals],[Tổng thực tế]],Người_tham_gia_triển_lãm_và_nhà_cung_cấp[[#Totals],[Tổng thực tế]],Hàng_bán_ra[[#Totals],[Tổng thực tế]])","v":{"v":1831,"d":"1,831.00 ₫"}}]
["Nhãn Phí vào cửa nằm trong ô bên phải.","Phí vào cửa"]
["Nhập Số lượt vào cửa ước tính và thực tế cùng với giá vé vào bảng bắt đầu từ ô bên phải. Thu nhập ước tính và thực tế từ phí vào cửa được tính toán tự động. Hướng dẫn tiếp theo nằm trong ô A12.","Ước tính","Thực tế","Loại","Giá","Tổng ước tính","Tổng thực tế"]
[null,300,278,"Người lớn @",{"v":5,"d":"5.00 ₫"},{"$f":"B8*E8","v":{"v":1500,"d":"1,500.00 ₫"}},{"$f":"C8*E8","v":{"v":1390,"d":"1,390.00 ₫"}}]
[null,197,195,"Trẻ em @",{"v":2,"d":"2.00 ₫"},{"$f":"B9*E9","v":{"v":394,"d":"394.00 ₫"}},{"$f":"C9*E9","v":{"v":390,"d":"390.00 ₫"}}]
[null,42,51,"Khác @",{"v":1,"d":"1.00 ₫"},{"v":42,"d":"42.00 ₫"},{"v":51,"d":"51.00 ₫"}]
[null," ",{"$nulls":3},{"$f":"SUBTOTAL(109,Phí_vào_cửa[Tổng ước tính])","v":{"v":1936,"d":"1,936.00 ₫"}},{"$f":"SUBTOTAL(109,Phí_vào_cửa[Tổng thực tế])","v":{"v":1831,"d":"1,831.00 ₫"}}]
["Nhãn Quảng cáo trong chương trình nằm trong ô bên phải.","Quảng cáo trong chương trình"]
["Nhập Số lượng quảng cáo ước tính và thực tế trong chương trình và Giá quảng cáo vào bảng bắt đầu từ ô bên phải. Thu nhập ước tính và thực tế từ quảng cáo được tính toán tự động. Hướng dẫn tiếp theo nằm trong ô A18.","Ước tính","Thực tế","Loại","Giá","Tổng ước tính","Tổng thực tế"]
[{"$nulls":3},"Bìa @",null,{"$f":"B14*E14","v":{"v":0,"d":"0.00 ₫"}},{"$f":"C14*E14","v":{"v":0,"d":"0.00 ₫"}}]
[{"$nulls":3},"Nửa trang @",null,{"$f":"B15*E15","v":{"v":0,"d":"0.00 ₫"}},{"$f":"C15*E15","v":{"v":0,"d":"0.00 ₫"}}]
[{"$nulls":3},"Một phần tư trang @",null,{"v":0,"d":"0.00 ₫"},{"v":0,"d":"0.00 ₫"}]
[null," ",{"$nulls":3},{"$f":"SUBTOTAL(109,Quảng_cáo_trong_chương_trình[Tổng ước tính])","v":{"v":0,"d":"0.00 ₫"}},{"$f":"SUBTOTAL(109,Quảng_cáo_trong_chương_trình[Tổng thực tế])","v":{"v":0,"d":"0.00 ₫"}}]
["Nhãn Người tham gia triển lãm hoặc nhà cung cấp nằm trong ô bên phải.","Người tham gia triển lãm/nhà cung cấp"]
["Nhập Số người tham gia triển lãm và nhà cung cấp ước tính và thực tế cũng như giá gian hàng vào bảng bắt đầu từ ô bên phải. Thu nhập ước tính và thực tế được tính toán tự động. Hướng dẫn tiếp theo nằm trong ô A24.","Ước tính","Thực tế","Loại","Giá","Tổng ước tính","Tổng thực tế"]
[{"$nulls":3},"Gian hàng lớn @",null,{"$f":"B20*E20","v":{"v":0,"d":"0.00 ₫"}},{"$f":"C20*E20","v":{"v":0,"d":"0.00 ₫"}}]
[{"$nulls":3},"Gian hàng trung bình @",null,{"$f":"B21*E21","v":{"v":0,"d":"0.00 ₫"}},{"$f":"C21*E21","v":{"v":0,"d":"0.00 ₫"}}]
[{"$nulls":3},"Gian hàng nhỏ @",null,{"v":0,"d":"0.00 ₫"},{"v":0,"d":"0.00 ₫"}]
[null," ",{"$nulls":3},{"$f":"SUBTOTAL(109,Người_tham_gia_triển_lãm_và_nhà_cung_cấp[Tổng ước tính])","v":{"v":0,"d":"0.00 ₫"}},{"$f":"SUBTOTAL(109,Người_tham_gia_triển_lãm_và_nhà_cung_cấp[Tổng thực tế])","v":{"v":0,"d":"0.00 ₫"}}]
["Nhãn Hàng bán ra nằm trong ô bên phải.","Hàng bán ra"]
["Nhập Số lượng hàng bán ra ước tính và thực tế cũng như giá của hàng vào bảng bắt đầu ở ô bên phải. Thu nhập ước tính và thực tế được tính toán tự động.","Ước tính","Thực tế","Loại","Giá","Tổng ước tính","Tổng thực tế"]
[{"$nulls":3},"Mặt hàng @",null,{"$f":"B26*E26","v":{"v":0,"d":"0.00 ₫"}},{"$f":"C26*E26","v":{"v":0,"d":"0.00 ₫"}}]
[{"$nulls":3},"Mặt hàng @",null,{"$f":"B27*E27","v":{"v":0,"d":"0.00 ₫"}},{"$f":"C27*E27","v":{"v":0,"d":"0.00 ₫"}}]
[{"$nulls":3},"Mặt hàng @",null,{"v":0,"d":"0.00 ₫"},{"v":0,"d":"0.00 ₫"}]
[{"$nulls":3},"Mặt hàng @",null,{"v":0,"d":"0.00 ₫"},{"v":0,"d":"0.00 ₫"}]
[null," ",{"$nulls":3},{"$f":"SUBTOTAL(109,Hàng_bán_ra[Tổng ước tính])","v":{"v":0,"d":"0.00 ₫"}},{"$f":"SUBTOTAL(109,Hàng_bán_ra[Tổng thực tế])","v":{"v":0,"d":"0.00 ₫"}}]

{"sheet":"Tóm_tắt","index":3,"n_rows":9,"n_cols":4,"rows_kept":9,"merged":[[1,1,1,3],[2,2,2,3],[8,1,8,4],[9,1,9,3]]}
["Tóm tắt lãi & lỗ thể hiện Tổng thu nhập và Tổng chi phí được cập nhật tự động trong trang tính này. Hướng dẫn hữu ích về cách sử dụng trang tính này nằm ở các ô trong cột này. Nhấn mũi tên xuống để bắt đầu."]
["Tên sự kiện được cập nhật tự động trong ô bên phải.",{"$f":"'Chi phí'!B2","v":"Ngân sách sự kiện cho \nTên sự kiện"}]
["Nhãn Tóm tắt lãi-lỗ nằm trong ô C3. Hướng dẫn tiếp theo nằm trong ô A5.",null,"Tóm tắt lãi-lỗ"]
[]
["Bảng Tổng bắt đầu từ ô bên phải được cập nhật tự động. Hướng dẫn tiếp theo nằm trong ô A9.","Tổng","Ước tính","Thực tế"]
[null,"Tổng thu nhập",{"$f":"'Thu nhập'!F5","v":{"v":1936,"d":"1,936.00 ₫"}},{"$f":"'Thu nhập'!G5","v":{"v":1831,"d":"1,831.00 ₫"}}]
[null,"Tổng chi phí",{"$f":"'Chi phí'!G5","v":{"v":1145,"d":"1,145.00 ₫"}},{"$f":"'Chi phí'!H5","v":{"v":395,"d":"395.00 ₫"}}]
[null,"Tổng lãi (hoặc lỗ)",{"$f":"C6-C7","v":{"v":791,"d":"791.00 ₫"}},{"$f":"D6-D7","v":{"v":1436,"d":"1,436.00 ₫"}}]
["Biểu đồ cột liên cụm so sánh Tổng thu nhập và Tổng chi phí ước tính với Tổng thu nhập và Tổng chi phí thực tế nằm trong ô bên phải.","Biểu đồ cột liên cụm so sánh Tổng thu nhập và Tổng chi phí ước tính với Tổng thu nhập và Tổng chi phí thực tế nằm trong ô này."]